bitfinex/quotes_ETHUSD_20240717
["timestamp","ask_amount","ask_price","bid_price","bid_amount"]
[1721232374430,2.9096,3436.9,3435.8,2.91046]
[1721232374431,2.90982,3436.7,3435.8,2.91046]
[1721232374575,0.05161583,3436.8,3435.8,2.91044]
[1721232374576,2.90987,3436.6,3435.8,2.91044]
[1721232374774,0.05156729,3436.6,3435.9,0.291044]
[1721232375009,0.05156729,3436.6,3436.0,2.91034]
[1721232375198,2.329,3437.0,3436.1,4.61026]
[1721232375371,2.3168,3437.5,3436.7,2.90976]
[1721232375572,0.05175417,3436.9,3436.5,1.7]
[1721232375780,2.90918,3437.4,3436.6,0.767007]
[1721232375991,2.9094,3437.2,3436.3,2.91005]
[1721232376279,0.0518027,3437.1,3436.6,2.9098]
[1721232376502,2.90902,3437.6,3436.5,2.90988]
[1721232376808,0.05177844,3437.0,3436.5,2.90988]
[1721232376971,2.90902,3437.6,3436.6,2.90984]
[1721232376972,2.9092,3437.4,3436.6,2.90984]
[1721232377173,2.90887,3437.8,3436.7,3.491722]
[1721232377496,2.90887,3437.8,3436.8,2.90967]
[1721232377715,0.05195469,3437.7,3437.0,2.90945]
[1721232378024,2.96089469,3437.7,3436.8,2.90963]
[1721232378172,2.71641913,3437.9,3436.7,0.581972]
[1721232378173,2.90909,3437.5,3436.7,0.581972]
[1721232378521,2.71641913,3437.9,3436.8,0.3491772]
[1721232378522,2.96130931,3437.4,3436.8,0.3491772]
[1721232378746,0.05213931,3437.4,3436.7,0.581972]
[1721232378877,2.96131931,3437.4,3436.4,2.90998]
[1721232379085,2.90944,3437.1,3436.3,2.91005]
[1721232379282,0.05184777,3437.0,3435.9,0.291044]
[1721232379492,2.2593,3436.9,3435.9,0.291044]
[1721232379813,2.90976,3436.7,3435.6,2.91064]
[1721232380064,0.0517025,3436.8,3435.9,2.91043]
[1721232380194,5.16891,3436.9,3435.7,2.91056]
[1721232380195,2.90995,3436.5,3435.7,2.91056]
[1721232380594,0.05156874,3436.4,3435.7,2.91056]
[1721232380790,0.05156874,3436.4,3435.3,2.91091]
[1721232381012,2.91026,3436.2,3435.4,4.029091]
[1721232381323,0.05149592,3436.1,3435.4,1.029091]
[1721232381616,0.05149592,3436.1,3435.4,3.939931]
[1721232381826,2.91036,3436.0,3435.4,1.029091]
[1721232382235,2.3938,3435.8,3434.7,7.38]
[1721232382544,2.91089,3435.4,3434.4,2.91165]
[1721232382719,2.94012115,3435.4,3434.3,2.91179]
[1721232383024,2.91115,3435.1,3434.4,1.029179]
[1721232383516,2.9111,3435.2,3434.4,2.91169]
[1721232383813,2.9109,3435.4,3434.1,2.9119]
[1721232384015,0.05171363,3435.1,3434.2,2.91184]
[1721232384225,2.91111,3435.2,3434.0,3.06]
[1721232384431,2.91072,3435.6,3434.2,4.76]
[1721232384582,0.05136534,3435.1,3434.7,2.9114]
[1721232384776,2.91072,3435.6,3434.8,2.91137]
[1721232385015,0.05125765,3435.0,3434.8,2.91137]
[1721232385221,2.91079,3435.5,3434.8,2.91137]
[1721232385621,0.05135479,3435.4,3434.8,2.91137]
[1721232385829,0.05135479,3435.4,3434.6,1.7]
[1721232385830,0.05135479,3435.4,3434.9,0.461137]
[1721232385999,0.05135479,3435.4,3435.1,2.91111]
[1721232386196,2.91044,3435.9,3435.1,2.91111]
[1721232386406,0.05133051,3435.3,3435.1,2.91111]
[1721232386710,2.91028,3436.1,3435.1,2.91111]
[1721232387035,2.91049,3435.9,3435.2,0.6283377]
[1721232387437,0.05146634,3435.8,3435.3,0.05821224]
[1721232387635,0.05146634,3435.8,3435.4,2.91086]
[1721232387840,2.3472,3436.4,3435.5,2.91076]
[1721232388025,2.90968,3436.8,3435.9,2.91041]
[1721232388224,2.90968,3436.8,3436.0,0.582102]
[1721232388225,0.0516311,3436.3,3436.0,0.582102]
[1721232388536,2.90968,3436.8,3436.0,0.582102]
[1721232388537,2.9098,3436.7,3436.0,0.582102]
[1721232388736,2.90964,3436.9,3436.0,0.582102]
[1721232388909,0.0500556,3436.6,3436.0,0.582102]
[1721232389262,2.91036,3436.0,3435.4,7.38]
[1721232389434,2.91036,3436.0,3435.0,2.9112]
[1721232389435,2.91062,3435.7,3435.0,2.9112]
[1721232389739,0.04981291,3435.6,3435.2,3.5392977]
[1721232390048,0.04981291,3435.6,3435.2,0.6283377]
[1721232390252,2.2808,3436.1,3435.2,0.6283377]
[1721232390435,2.2808,3436.1,3435.3,0.35395377]
[1721232390621,2.96027486,3436.0,3435.3,0.35395377]
[1721232390823,2.96027486,3436.0,3435.4,0.05821274]
[1721232390824,0.04986486,3436.0,3435.4,0.05821274]
[1721232391023,0.04986486,3436.0,3435.5,2.91078]
[1721232391261,2.91003,3436.4,3435.5,2.91075]
[1721232391442,0.04988573,3435.9,3435.6,3.662803]
[1721232391615,2.90994,3436.5,3435.6,3.662803]
[1721232391810,0.04973244,3435.8,3435.6,0.752163]
[1721232392033,2.91002,3436.4,3435.6,0.752163]
[1721232392034,0.02923115,3436.4,3435.6,0.752163]
[1721232392250,0.02923115,3436.4,3434.7,6.06]
[1721232392251,0.04976354,3435.7,3435.2,2.91102]
[1721232392470,2.91045,3435.9,3434.9,0.461137]
[1721232392751,2.91068,3435.7,3434.9,0.461137]
[1721232393052,0.02923115,3436.1,3434.9,0.461137]
[1721232393053,2.9109,3435.4,3434.9,0.461137]
[1721232393348,2.9109,3435.4,3434.5,2.91155]
[1721232393349,0.04975675,3435.3,3434.6,2.91152]
[1721232393549,2.91082,3435.5,3434.7,2.91144]
[1721232393727,0.04973246,3435.2,3434.7,2.91144]
[1721232393935,2.9103,3436.1,3434.9,2.91128]
[1721232394114,3.0,3436.0,3434.5,1.7]
[1721232394321,2.91075,3435.6,3434.8,2.91131]
[1721232394533,0.04992667,3436.0,3435.0,2.91117]
[1721232394717,0.0498053,3435.5,3435.0,2.91117]
[1721232394916,3.0,3435.9,3435.2,2.91096]
[1721232395131,0.04978102,3435.4,3435.2,2.91096]
[1721232395470,3.0,3435.9,3435.3,0.582213]
[1721232395663,5.91044,3435.9,3435.3,0.582213]
[1721232396339,2.91086,3435.5,3434.6,8.08573]
[1721232396546,2.91088,3435.4,3434.6,10.99722]
[1721232397473,2.91095,3435.3,3434.6,8.08573]
[1721232397972,2.91095,3435.3,3434.6,10.99727]
[1721232398174,2.91084,3435.5,3434.6,10.99727]
[1721232398376,2.91091,3435.4,3434.7,1.390889]
[1721232399081,2.91085,3435.5,3434.7,4.302349]
[1721232399236,2.91091,3435.4,3434.7,2.91146]
[1721232399432,2.91096,3435.3,3434.6,0.70573]
[1721232399629,0.02923115,3435.2,3434.2,7.38]
[1721232399928,2.4027,3435.6,3433.7,1.7]
[1721232399929,2.9113,3434.9,3433.9,5.9121]
[1721232400139,2.9113,3434.9,3434.0,2.91199]
[1721232400338,2.9113,3434.9,3434.1,2.91196]
[1721232400975,0.04938905,3434.8,3434.1,2.91196]
[1721232401177,0.04938905,3434.8,3434.2,0.882406]
[1721232401397,2.96081905,3434.8,3434.2,0.882406]
[1721232401681,0.04938905,3434.8,3434.2,0.882406]
[1721232401974,2.91093,3435.4,3434.6,2.91154]
[1721232402175,5.31345,3435.6,3434.7,0.582314]
[1721232402375,2.3556,3435.8,3434.7,0.582314]
[1721232402586,2.91102,3435.3,3434.4,2.91171]
[1721232402803,2.91136,3434.9,3434.1,2.91196]
[1721232403006,2.91137,3434.8,3434.1,2.91196]
[1721232403294,2.91136,3434.9,3433.9,7.61209]
[1721232403295,2.91146,3434.7,3433.9,7.61209]
[1721232403489,2.91136,3434.9,3434.0,2.91203]
[1721232403703,2.91136,3434.9,3434.1,1.052412]
[1721232403852,2.91138,3434.8,3434.1,1.052412]
[1721232404495,2.91136,3434.9,3434.1,3.964372]
[1721232404694,2.91114,3435.1,3434.1,3.964372]
[1721232404867,2.91144,3434.8,3434.1,1.052412]
[1721232405071,2.91156,3434.6,3434.1,1.052412]
[1721232405304,2.91156,3434.6,3433.9,1.7]
[1721232405830,0.02923115,3435.1,3433.9,1.7]
[1721232405831,2.91177,3434.4,3433.9,1.7]
[1721232406181,2.91165,3434.5,3433.9,1.7]
[1721232406496,2.9118,3434.3,3433.9,1.7]
[1721232407229,2.91194,3434.2,3433.9,1.7]
[1721232407381,2.9118,3434.3,3433.9,1.7]
[1721232408219,2.91189,3434.2,3433.9,1.7]
[1721232408405,2.9118,3434.3,3433.9,1.7]
[1721232408406,2.91198,3434.1,3433.9,1.7]
[1721232408605,2.9118,3434.3,3433.9,1.7]
[1721232408936,2.4086,3434.8,3433.9,1.7]
[1721232409120,2.91172,3434.4,3433.9,1.7]
[1721232409319,2.91181,3434.3,3433.9,1.7]
[1721232409622,2.91189,3434.2,3433.9,1.7]
[1721232409823,5.4086,3434.8,3433.9,1.7]
[1721232409985,2.91189,3434.2,3433.9,1.7]
[1721232411154,2.91197,3434.1,3433.9,1.7]
[1721232411325,2.91238,3433.7,3433.3,7.38]
[1721232411512,2.91242,3433.6,3432.8,2.91302]
[1721232412207,0.02923115,3434.0,3432.8,2.91302]
[1721232412208,2.91236,3433.7,3432.9,2.91298]
[1721232412413,0.02923115,3434.0,3433.1,1.7]
[1721232412414,2.91208,3434.0,3433.1,1.7]
[1721232412613,3.0,3434.3,3433.1,1.7]
[1721232412614,0.04865131,3433.6,3433.1,1.7]
[1721232412856,2.91232,3433.7,3433.2,0.461298]
[1721232413219,2.91215,3433.9,3433.2,0.461298]
[1721232413220,0.04857247,3433.5,3433.2,0.461298]
[1721232413420,0.04859678,3433.6,3433.2,0.461298]
[1721232413643,0.04854816,3433.4,3433.2,0.461298]
[1721232413820,2.91235,3433.7,3433.2,0.461298]
[1721232414351,0.04859678,3433.6,3433.3,0.3374188]
[1721232414551,0.04859678,3433.6,3433.3,3.2500588]
[1721232414767,2.91173,3434.4,3433.5,2.91247]
[1721232414933,2.91173,3434.4,3433.6,2.91238]
[1721232415116,0.04820409,3434.3,3433.6,2.91238]
[1721232415319,2.96002409,3434.3,3433.7,0.752485]
[1721232415554,2.91158,3434.6,3433.7,0.752485]
[1721232415759,0.0481798,3434.2,3433.7,0.752485]
[1721232415918,2.91,3436.5,3433.7,0.752485]
[1721232415919,2.4845,3435.3,3433.9,2.91213]
[1721232416123,2.91162,3434.6,3433.9,2.91213]
[1721232416472,2.91162,3434.6,3434.0,0.6576855]
[1721232416617,0.0466954,3434.5,3434.0,0.6576855]
[1721232416813,2.91179,3434.4,3433.6,2.91234]
[1721232417014,2.91195,3434.2,3433.4,7.38]
[1721232417263,2.9121,3434.0,3433.4,7.38]
[1721232417467,2.91232,3433.7,3433.4,7.38]
[1721232417791,2.95886672,3433.6,3432.9,2.9129]
[1721232417975,0.04647672,3433.6,3433.0,1.320602]
[1721232418283,2.91241,3433.6,3433.0,1.320602]
[1721232418495,2.91249,3433.5,3432.8,7.38]
[1721232418666,2.91282,3433.1,3432.8,7.38]
[1721232418994,0.02923115,3433.0,3432.8,7.38]
[1721232419291,2.91243,3433.6,3432.0,2.72979694]
[1721232419292,2.91308,3432.8,3432.0,2.2732]
[1721232419579,0.04600063,3432.7,3432.2,0.68265397]
[1721232419748,0.04600063,3432.7,3432.2,3.59622397]
[1721232419945,2.91285,3433.1,3432.3,2.91344]
[1721232420386,0.04607359,3433.0,3432.4,2.9134]
[1721232420585,2.91308,3432.8,3432.2,0.68265397]
[1721232420764,2.91295,3433.0,3432.3,0.3596384]
[1721232420963,0.04600063,3432.7,3432.3,0.3596384]
[1721232421173,2.91295,3433.0,3432.3,0.3596384]
[1721232421386,0.04597631,3432.6,3432.2,0.1490527]
[1721232421687,0.02923115,3433.1,3432.2,0.1490527]
[1721232421688,2.91317,3432.7,3432.2,0.1490527]
[1721232421992,8.55281,3433.4,3432.2,0.1490527]
[1721232421993,0.04597631,3432.6,3432.4,4.61341]
[1721232422161,0.04597631,3432.6,3432.5,3.68091427]
[1721232422363,2.91261,3433.4,3432.6,2.91321]
[1721232422566,2.91234,3433.7,3432.7,2.91312]
[1721232422887,0.04610417,3433.3,3432.8,2.91305]
[1721232423191,3.0,3433.6,3432.9,2.91297]
[1721232423192,0.04601948,3433.2,3432.9,2.91297]
[1721232423363,0.04601948,3433.2,3433.0,0.582602]
[1721232423560,3.0,3433.8,3432.8,2.91301]
[1721232423561,2.91228,3433.8,3432.8,2.91301]
[1721232423760,0.04599516,3433.1,3433.0,2.91288]
[1721232423957,3.0,3433.7,3432.5,0.76759427]
[1721232423958,2.91253,3433.5,3432.5,0.76759427]
[1721232424196,2.91299,3432.9,3432.1,2.91361]
[1721232424409,2.91299,3432.9,3431.9,5.21759]
[1721232424552,0.04592222,3432.8,3432.1,2.91361]
[1721232424753,2.95900222,3432.8,3431.9,2.91379]
[1721232425053,2.95900222,3432.8,3432.1,2.91364]
[1721232425312,2.95900222,3432.8,3431.9,2.91379]
[1721232425313,2.91317,3432.7,3431.9,2.91379]
[1721232425667,0.04631613,3432.6,3431.9,2.91379]
[1721232425892,0.04631613,3432.6,3432.0,2.91375]
[1721232426058,0.04631613,3432.6,3431.9,2.91376]
[1721232426264,0.04631613,3432.6,3431.7,1.7]
[1721232426563,0.04631613,3432.6,3432.0,2.91375]
[1721232426764,0.04631613,3432.6,3432.2,0.45533297]
[1721232426963,0.04631613,3432.6,3432.2,3.0626127]
[1721232427293,2.4506,3433.5,3432.2,3.0626127]
[1721232427294,2.91238,3433.7,3432.5,3.9865]
[1721232427609,2.4736,3434.0,3432.5,3.9865]
[1721232427610,0.04684285,3433.6,3432.9,5.82588]
[1721232427898,0.04684285,3433.6,3432.9,2.9129]
[1721232428049,2.91242,3433.6,3432.6,2.91322]
[1721232428252,2.91274,3433.2,3432.5,2.91331]
[1721232428680,0.04629313,3433.1,3432.3,2.91343]
[1721232428886,0.04629313,3433.1,3432.2,0.1490527]
[1721232428887,0.02923115,3433.0,3432.2,0.1490527]
[1721232429086,2.91314,3432.8,3432.2,0.1490527]
[1721232429297,0.04607673,3432.9,3432.3,2.91344]
[1721232429597,0.04649491,3432.8,3432.4,2.91341]
[1721232430050,3.0,3433.0,3432.5,2.91331]
[1721232430249,0.04645607,3432.7,3432.6,7.5847397]
[1721232430495,2.91221,3433.9,3433.0,2.91289]
[1721232430690,2.91183,3434.3,3433.3,2.91262]
[1721232430853,2.486,3434.5,3433.1,3.204039]
[1721232430854,0.04671445,3433.8,3433.5,2.91247]
[1721232431055,0.04671445,3433.8,3433.7,5.82462]
[1721232431261,2.91062,3435.7,3434.4,1.7]
[1721232431262,2.91104,3435.2,3434.4,1.7]
[1721232431501,2.91081,3435.5,3434.5,2.91157]
[1721232431719,0.0454118,3435.1,3434.6,0.31056108]
[1721232431864,2.91088,3435.4,3434.6,3.163876]
[1721232432212,2.91088,3435.4,3434.5,2.91163]
[1721232432213,2.91095,3435.3,3434.5,2.91163]
[1721232432500,2.91105,3435.2,3434.3,2.91178]
[1721232432708,2.91105,3435.2,3433.9,2.91209]
[1721232432709,2.91147,3434.7,3433.9,2.91205]
[1721232432886,2.91147,3434.7,3433.9,2.91213]
[1721232433058,2.91147,3434.7,3433.7,10.2923]
[1721232433059,2.91147,3434.7,3433.8,2.91221]
[1721232433264,2.95552168,3434.6,3433.7,7.38]
[1721232433564,2.95552168,3434.6,3433.6,2.91238]
[1721232433565,0.04381939,3434.5,3433.8,4.480818]
[1721232433768,0.04381939,3434.5,3433.8,1.568678]
[1721232433974,2.91112,3435.1,3434.2,2.91182]
[1721232434168,5.911,3435.3,3434.4,2.91163]
[1721232434368,0.04409062,3435.0,3434.5,2.91162]
[1721232434670,2.91113,3435.1,3434.0,2.91202]
[1721232434981,3.323,3434.1,3432.9,0.60354638]
[1721232435334,3.323,3434.1,3432.8,1.51864323]
[1721232435335,3.323,3433.0,3432.2,0.1490527]
[1721232435524,2.91349,3432.3,3432.2,0.1490527]
[1721232435668,5.85621115,3432.3,3432.2,0.1490527]
[1721232435862,5.89953621,3432.3,3432.2,0.1490527]
[1721232436304,8.89953621,3432.3,3432.2,0.1490527]
[1721232436514,10.41311983,3432.3,3432.2,0.1490527]
[1721232437387,7.47039868,3432.3,3432.2,0.1490527]
[1721232437816,5.95681506,3432.3,3432.2,0.1490527]
[1721232438489,8.87030506,3432.3,3432.2,0.1490527]
[1721232439141,5.95681506,3432.3,3432.2,0.1490527]
[1721232439325,0.04332506,3432.3,3432.2,0.1490527]
[1721232439502,2.91326,3432.6,3432.2,0.1490527]
[1721232439713,0.04286491,3432.5,3432.2,0.1490527]
[1721232440408,2.95619491,3432.5,3432.2,0.1490527]
[1721232440926,0.04286491,3432.5,3432.2,0.1490527]
[1721232441333,5.91276,3433.2,3432.2,0.1490527]
[1721232441534,2.91298,3432.9,3432.2,0.1490527]
[1721232441831,2.91316,3432.7,3432.2,0.1490527]
[1721232442192,0.04243827,3432.6,3432.2,0.1490527]
[1721232442392,2.94259115,3432.5,3432.2,0.1490527]
[1721232442624,2.91349,3432.3,3432.2,0.1490527]
[1721232442799,6.41682951,3432.3,3432.2,0.1490527]
[1721232443012,6.45968386,3432.3,3432.2,0.1490527]
[1721232443216,9.45968386,3432.3,3432.2,0.1490527]
[1721232443390,3.63270386,3432.3,3432.2,0.1490527]
[1721232443591,0.04285435,3432.3,3432.2,0.1490527]
[1721232444407,2.95634435,3432.3,3432.2,0.1490527]
[1721232444729,5.95634435,3432.3,3432.2,0.1490527]
[1721232444896,8.86983435,3432.3,3432.2,0.1490527]
[1721232447333,5.95634435,3432.3,3432.2,0.1490527]
[1721232447647,9.46546879,3432.3,3432.2,0.1490527]
[1721232447962,6.55197879,3432.3,3432.2,0.1490527]
[1721232448097,9.46546879,3432.3,3432.2,0.1490527]
[1721232448840,6.55197879,3432.3,3432.2,0.1490527]
[1721232449200,3.04285435,3432.3,3432.2,0.1490527]
[1721232449423,0.04285435,3432.3,3432.2,0.1490527]
[1721232449631,2.91349,3432.3,3432.2,0.1490527]
[1721232449932,5.86930836,3432.3,3432.2,0.1490527]
[1721232450300,8.86930836,3432.3,3432.2,0.1490527]
[1721232450501,10.3389032,3432.3,3432.2,0.1490527]
[1721232452510,13.2523932,3432.3,3432.2,0.1490527]
[1721232452713,19.5905932,3432.3,3432.2,0.1490527]
[1721232453102,22.5040832,3432.3,3432.2,0.1490527]
[1721232453303,22.5040832,3432.3,3432.2,2.7e-06]
[1721232455641,19.5905932,3432.3,3432.2,2.7e-06]
[1721232458041,22.5040832,3432.3,3432.2,2.7e-06]
[1721232459000,19.5905932,3432.3,3432.2,2.7e-06]
[1721232460813,22.5040832,3432.3,3432.2,2.7e-06]
[1721232461026,19.5905932,3432.3,3432.2,2.7e-06]
[1721232461820,10.7484132,3432.3,3432.2,2.7e-06]
[1721232462024,5.95581836,3432.3,3432.2,2.7e-06]
[1721232462260,2.95581836,3432.3,3432.2,2.7e-06]
[1721232462958,5.86930836,3432.3,3432.2,2.7e-06]
[1721232464073,2.95581836,3432.3,3432.2,2.7e-06]
[1721232464424,2.98504951,3432.3,3432.2,2.7e-06]
[1721232464626,3.28355446,3432.3,3432.2,2.7e-06]
[1721232464825,2.98504951,3432.3,3432.2,2.7e-06]
[1721232465052,2.95581836,3432.3,3432.2,2.7e-06]
[1721232465768,5.89853951,3432.3,3432.2,2.7e-06]
[1721232466077,2.95581836,3432.3,3432.2,2.7e-06]
[1721232466361,0.04232836,3432.3,3432.2,2.7e-06]
[1721232466740,2.91349,3432.3,3432.2,2.7e-06]
[1721232466935,0.04000346,3432.3,3432.2,2.7e-06]
[1721232467561,2.91334,3432.5,3432.2,2.7e-06]
[1721232467752,0.04019068,3432.3,3432.2,2.7e-06]
[1721232467949,2.91321,3432.7,3432.2,2.7e-06]
[1721232467950,5.82644,3432.7,3432.2,2.7e-06]
[1721232468264,2.91321,3432.7,3432.2,2.7e-06]
[1721232468429,2.95350364,3432.6,3432.2,2.7e-06]
[1721232469566,2.98273479,3432.6,3432.2,2.7e-06]
[1721232469767,0.04026364,3432.6,3432.2,2.7e-06]
[1721232470264,0.04030786,3432.5,3432.3,0.29136527]
[1721232470464,0.45677329,3433.9,3432.2,2.7e-06]
[1721232470465,5.94231115,3432.8,3432.2,2.7e-06]
[1721232470631,0.04028354,3432.4,3432.2,2.7e-06]
[1721232470827,2.94239115,3432.7,3432.2,2.7e-06]
[1721232471053,0.04025922,3432.3,3432.2,2.7e-06]
[1721232471243,2.94239115,3432.7,3432.2,2.7e-06]
[1721232471447,0.04025922,3432.3,3432.2,2.7e-06]
[1721232471646,2.91316,3432.7,3432.2,2.7e-06]
[1721232471827,0.04025922,3432.3,3432.2,2.7e-06]
[1721232472172,0.02923115,3432.6,3432.2,2.7e-06]
[1721232472486,2.91346,3432.4,3432.2,2.7e-06]
[1721232472645,2.94269115,3432.4,3432.2,2.7e-06]
[1721232472829,0.04022694,3432.3,3432.2,2.7e-06]
[1721232473029,2.94241115,3432.7,3432.2,2.7e-06]
[1721232473366,0.04022694,3432.3,3432.2,2.7e-06]
[1721232473578,2.94241115,3432.7,3432.2,2.7e-06]
[1721232473772,0.04022694,3432.3,3432.2,2.7e-06]
[1721232474234,2.94241115,3432.7,3432.2,2.7e-06]
[1721232474436,0.04023529,3432.3,3432.2,2.7e-06]
[1721232474739,2.94241115,3432.7,3432.2,2.7e-06]
[1721232474740,2.9133,3432.6,3432.2,2.7e-06]
[1721232474972,0.04023529,3432.3,3432.2,2.7e-06]
[1721232475476,2.91333,3432.5,3432.2,2.7e-06]
[1721232475850,0.04025126,3432.4,3432.2,2.7e-06]
[1721232476050,2.91349,3432.3,3432.2,2.7e-06]
[1721232476373,0.03886731,3432.3,3432.2,2.7e-06]
[1721232477173,0.02923115,3432.6,3432.2,2.7e-06]
[1721232477174,2.94254115,3432.6,3432.2,2.7e-06]
[1721232477389,0.03887631,3432.3,3432.2,2.7e-06]
[1721232477832,2.91331,3432.6,3432.2,2.7e-06]
[1721232478037,0.03887631,3432.3,3432.2,2.7e-06]
[1721232478238,2.91331,3432.6,3432.2,2.7e-06]
[1721232478762,0.03895723,3432.5,3432.2,2.7e-06]
[1721232479177,2.95228723,3432.5,3432.2,2.7e-06]
[1721232479975,2.91349,3432.3,3432.2,2.7e-06]
[1721232480177,5.85621115,3432.3,3432.2,2.7e-06]
[1721232480489,2.98159746,3432.3,3432.2,2.7e-06]
[1721232480985,0.03887631,3432.3,3432.2,2.7e-06]
[1721232481356,2.91328,3432.6,3432.2,2.7e-06]
[1721232481671,1.19065561,3433.0,3432.2,2.7e-06]
[1721232481672,0.89299171,3433.3,3432.5,2.91328]
[1721232481873,2.91292,3433.0,3432.5,0.52412827]
[1721232482186,2.91292,3433.0,3432.2,5.2415327]
[1721232482187,2.91298,3432.9,3432.2,5.2415327]
[1721232482472,2.91283,3433.1,3432.4,2.91335]
[1721232482837,2.91283,3433.1,3432.2,5.2415327]
[1721232482838,2.91283,3433.1,3432.3,2.91349]
[1721232483037,2.94188115,3433.3,3432.2,2.3280027]
[1721232483038,2.9129,3433.0,3432.2,2.3280027]
[1721232483240,2.498,3432.6,3432.2,2.7e-06]
[1721232483483,5.82698,3432.3,3432.2,2.7e-06]
[1721232483782,5.85621115,3432.3,3432.2,2.7e-06]
[1721232483936,11.76970115,3432.3,3432.2,2.7e-06]
[1721232484137,10.09746169,3432.3,3432.2,2.7e-06]
[1721232484686,13.01095169,3432.3,3432.2,2.7e-06]
[1721232484886,14.87849159,3432.3,3432.2,2.7e-06]
[1721232485089,18.0982833,3432.3,3432.2,2.7e-06]
[1721232485256,23.99978159,3432.3,3432.2,2.7e-06]
[1721232485445,2.91453,3431.1,3430.2,12.75457]
[1721232485640,2.91453,3431.1,3430.2,5.37457]
[1721232485878,2.9146,3431.0,3430.3,0.829]
[1721232487186,6.81005775,3431.8,3430.5,2.915]
[1721232487187,2.91418,3431.5,3430.5,2.915]
[1721232487334,2.91402,3431.7,3430.5,2.915]
[1721232487335,2.91427,3431.4,3430.5,2.915]
[1721232487538,2.91427,3431.4,3430.5,3.826847]
[1721232487785,2.91436,3431.3,3430.5,3.826847]
[1721232488277,2.91418,3431.5,3430.7,2.91485]
[1721232488483,2.91418,3431.5,3430.5,3.826847]
[1721232488637,5.91392,3431.8,3430.7,2.91485]
[1721232488843,3.0,3431.7,3430.9,2.91465]
[1721232489139,2.91376,3432.0,3431.0,5.40636]
[1721232489474,2.91367,3432.1,3431.2,2.91441]
[1721232489847,2.91382,3432.0,3431.0,5.40634]
[1721232490059,2.91367,3432.1,3431.0,5.40634]
[1721232490060,2.94290115,3432.1,3431.0,5.40634]
[1721232490254,2.91401,3431.7,3431.0,2.4918]
[1721232490470,0.02923115,3432.1,3430.6,2.4918]
[1721232490471,2.94332115,3431.6,3430.6,2.4918]
[1721232490673,2.91435,3431.3,3430.6,2.4918]
[1721232490859,2.91455,3431.1,3430.6,2.4918]
[1721232491386,0.03496137,3431.0,3430.6,2.4918]
[1721232491886,0.03496137,3431.0,3430.6,3.032496]
[1721232492254,0.89609775,3431.9,3430.7,1.7]
[1721232492255,2.91422,3431.5,3430.7,1.7]
[1721232492456,0.03493704,3430.9,3430.7,1.7]
[1721232492660,2.91422,3431.5,3430.7,1.7]
[1721232492979,0.03490436,3430.8,3430.6,5.947426]
[1721232493194,2.91423,3431.5,3430.7,1.0562476]
[1721232493494,2.91423,3431.5,3430.6,3.032496]
[1721232493495,2.91435,3431.3,3430.6,3.032496]
[1721232493959,0.03500168,3431.2,3430.6,3.032496]
[1721232494151,0.03500168,3431.2,3430.7,2.91485]
[1721232494574,2.91433,3431.4,3430.6,3.032496]
[1721232495113,2.91444,3431.2,3430.6,2.4918]
[1721232495247,0.02923115,3431.1,3430.1,2.91533]
[1721232495448,2.9147,3430.9,3430.2,2.91527]
[1721232495674,2.91446,3431.2,3430.2,2.91527]
[1721232495675,0.03490436,3430.8,3430.2,2.91527]
[1721232495892,2.91428,3431.4,3430.4,2.91509]
[1721232496091,0.03488002,3430.7,3430.5,3.376479]
[1721232496293,0.03488002,3430.7,3430.6,2.91494]
[1721232496796,2.91436,3431.3,3430.6,2.91494]
[1721232496977,2.91436,3431.3,3430.5,0.461509]
[1721232497301,2.91468,3431.0,3430.2,2.91524]
[1721232497469,2.91469,3430.9,3430.0,2.91538]
[1721232497997,2.91469,3430.9,3430.2,2.91527]
[1721232498201,2.94369115,3431.2,3430.2,2.91527]
[1721232498202,2.91446,3431.2,3430.2,2.91527]
[1721232498360,2.91428,3431.4,3430.6,2.91492]
[1721232498361,2.91432,3431.4,3430.6,2.91492]
[1721232498549,2.91432,3431.4,3430.7,0.291492]
[1721232498771,2.91437,3431.3,3430.7,0.291492]
[1721232499961,2.91444,3431.2,3430.7,0.291492]
[1721232500156,2.91444,3431.2,3430.4,2.91504]
[1721232500506,2.91475,3430.9,3430.2,2.91527]
[1721232501091,2.91456,3431.1,3430.2,2.91527]
[1721232501492,0.03489327,3431.0,3430.2,2.91527]
[1721232501670,2.91473,3430.9,3430.3,0.753055]
[1721232502067,0.03484461,3430.8,3430.2,2.91527]
[1721232502795,2.91492,3430.7,3429.9,2.4615]
[1721232502999,2.91499,3430.6,3429.9,2.4615]
[1721232503205,2.91503,3430.5,3429.9,2.4615]
[1721232503489,2.91503,3430.5,3429.6,3.0056177]
[1721232503490,2.9152,3430.3,3429.6,3.0056177]
[1721232503689,0.03473712,3430.4,3429.6,0.0898877]
[1721232503690,2.91559,3429.9,3429.6,0.0898877]
[1721232503859,2.91563,3429.8,3429.6,0.0898877]
[1721232504061,0.03454639,3429.7,3429.6,0.0898877]
[1721232504473,2.91562,3429.8,3429.6,0.0898877]
[1721232504766,0.03454639,3429.7,3429.6,0.0898877]
[1721232505170,2.91562,3429.8,3429.6,0.0898877]
[1721232505359,2.97942586,3429.7,3429.6,0.0898877]
[1721232505564,6.4553993,3429.7,3429.6,0.0898877]
[1721232506085,2.95019471,3429.7,3429.6,0.0898877]
[1721232507119,0.03449471,3429.7,3429.6,0.0898877]
[1721232507607,2.91563,3429.8,3429.6,0.0898877]
[1721232507902,0.03428682,3429.7,3429.6,0.0898877]
[1721232508399,2.91563,3429.8,3429.6,0.0898877]
[1721232508599,2.94998682,3429.7,3429.6,0.0898877]
[1721232508800,3.53947162,3429.7,3429.6,0.0898877]
[1721232509104,2.94998682,3429.7,3429.6,0.0898877]
[1721232509319,11.08768682,3429.7,3429.6,0.0898877]
[1721232509604,14.11691797,3429.7,3429.6,0.0898877]
[1721232509805,11.17198682,3429.7,3429.6,0.0898877]
[1721232509980,8.86568682,3429.7,3429.6,0.0898877]
[1721232510176,7.3782095,3429.7,3429.6,0.0898877]
[1721232510503,10.2939095,3429.7,3429.6,0.0898877]
[1721232510664,2.3063,3429.6,3427.8,2.67838059]
[1721232510864,2.3063,3429.6,3428.0,2.91714]